bitfinex/quotes_SOLUSD_20251106
["timestamp","ask_amount","ask_price","bid_price","bid_amount"]
[1762437723937,0.2,161.09,161.08,32.51669724]
[1762437724113,0.2,161.09,161.08,33.23669724]
[1762437725232,1e-08,161.1,161.09,10.08939448]
[1762437725443,1e-08,161.1,161.09,10.71016547]
[1762437725613,1e-08,161.1,161.09,16.91787544]
[1762437725937,1e-08,161.1,161.09,19.40427792]
[1762437727121,0.2,161.14,161.12,20.592]
[1762437727337,0.2,161.14,161.12,33.11735265]
[1762437727536,0.2,161.14,161.12,40.04390677]
[1762437729123,1e-08,161.15,161.13,0.72]
[1762437729448,0.1,161.17,161.16,20.592]
[1762437729754,0.1,161.17,161.16,38.70171089]
[1762437730058,0.1,161.17,161.16,39.42171089]
[1762437730937,0.1,161.17,161.16,40.04221225]
[1762437731258,0.2,161.19,161.16,40.04221225]
[1762437731259,0.2,161.19,161.16,55.55474637]
[1762437731420,0.2,161.19,161.18,4.68469724]
[1762437731615,0.2,161.19,161.18,10.88894094]
[1762437731847,0.2,161.19,161.18,11.60894094]
[1762437732133,0.2,161.19,161.18,14.0941076]
[1762437732924,1e-08,161.19,161.18,34.6861076]
[1762437735521,1e-08,161.19,161.18,41.9061076]
[1762437738422,36.09197905,161.3,161.18,41.9061076]
[1762437738423,0.72,161.34,161.21,20.592]
[1762437738745,0.82,161.36,161.33,4.68469724]
[1762437738942,0.82,161.36,161.23,22.59199999]
[1762437738943,0.82,161.36,161.34,4.68469724]
[1762437739239,0.82,161.36,161.28,20.592]
[1762437739444,0.82,161.36,161.31,4.68469724]
[1762437739628,0.82,161.36,161.32,4.68469724]
[1762437740030,7.01736649,161.36,161.32,4.68469724]
[1762437740529,7.01736649,161.36,161.34,4.68469724]
[1762437740530,0.72,161.35,161.34,4.68469724]
[1762437740734,0.1,161.36,161.34,4.68469724]
[1762437740930,0.1,161.36,161.35,4.68469724]
[1762437741521,0.1,161.36,161.35,11.92469724]
[1762437741818,0.1,161.36,161.35,10.88240408]
[1762437742435,0.1,161.36,161.35,13.48589615]
[1762437742854,1e-08,161.36,161.35,14.10566683]
[1762437743422,1e-08,161.36,161.35,20.70385614]
[1762437743638,1e-08,161.36,161.35,14.10566683]
[1762437743839,1e-08,161.36,161.35,34.69766683]
[1762437744455,1e-08,161.36,161.35,41.31789615]
[1762437747732,1e-08,161.36,161.35,14.52818931]
[1762437748142,1e-08,161.36,161.35,15.14795999]
[1762437748329,0.66,161.45,161.37,20.592]
[1762437748654,0.66,161.45,161.44,6.59818931]
[1762437749533,0.66,161.45,161.41,7.24]
[1762437749885,0.66,161.45,161.38,7.85965547]
[1762437749886,0.66,161.45,161.4,6.59818931]
[1762437750032,0.66,161.45,161.4,12.79394894]
[1762437750351,0.66,161.45,161.41,6.59818931]
[1762437750726,0.66,161.45,161.4,22.37522679]
[1762437750926,20.592,161.5,161.44,6.59818931]
[1762437751126,0.66,161.47,161.46,6.59818931]
[1762437751441,0.66,161.47,161.45,6.59818931]
[1762437751748,0.66,161.47,161.43,6.19463544]
[1762437751954,0.66,161.47,161.45,6.59818931]
[1762437752129,0.66,161.47,161.4,20.592]
[1762437752457,6.59818931,161.46,161.4,13.83818931]
[1762437752627,6.59818931,161.46,161.41,6.59818931]
[1762437752826,0.66,161.45,161.41,6.59818931]
[1762437753325,0.66,161.45,161.39,6.59818931]
[1762437753326,7.25818931,161.45,161.39,6.59818931]
[1762437753530,6.59818931,161.44,161.39,6.59818931]
[1762437753747,7.25818931,161.44,161.39,6.59818931]
[1762437754061,0.66,161.43,161.39,6.59818931]
[1762437755444,0.66,161.43,161.39,12.79419932]
[1762437756250,6.85476763,161.43,161.38,6.19650559]
[1762437756431,0.66,161.43,161.39,6.59818931]
[1762437756637,0.68,161.42,161.39,6.59818931]
[1762437756859,0.68,161.42,161.37,12.79512802]
[1762437757155,7.27818931,161.42,161.37,12.79512802]
[1762437757369,0.68,161.42,161.37,12.79512802]
[1762437757657,0.68,161.41,161.38,6.59818931]
[1762437758363,0.68,161.41,161.37,12.79512802]
[1762437758542,6.59818931,161.4,161.32,6.1988594]
[1762437758736,6.59818931,161.4,161.35,6.59818931]
[1762437758943,0.68,161.39,161.35,6.59818931]
[1762437759245,0.68,161.42,161.38,6.59818931]
[1762437759448,20.592,161.45,161.41,6.19540301]
[1762437759638,0.68,161.44,161.41,6.19540301]
[1762437760660,0.68,161.47,161.42,6.59818931]
[1762437760858,0.68,161.46,161.42,6.59818931]
[1762437761071,6.59818931,161.5,161.43,6.59818931]
[1762437761254,0.68,161.48,161.43,6.59818931]
[1762437761445,0.68,161.48,161.42,0.71]
[1762437761446,0.68,161.48,161.45,6.19386807]
[1762437762060,6.59818931,161.5,161.45,6.19386807]
[1762437762061,0.68,161.5,161.47,6.59818931]
[1762437762358,7.27818931,161.49,161.43,20.03244526]
[1762437762870,0.68,161.48,161.43,20.03244526]
[1762437763262,0.68,161.48,161.43,35.51903387]
[1762437763566,0.68,161.48,161.43,20.03244526]
[1762437763753,0.68,161.48,161.44,6.59818931]
[1762437763953,0.68,161.48,161.43,20.03244526]
[1762437764358,0.68,161.48,161.43,13.83818931]
[1762437764749,0.68,161.48,161.43,20.03268911]
[1762437765368,0.68,161.48,161.45,6.59818931]
[1762437765760,0.68,161.48,161.45,12.7917682]
[1762437766349,0.68,161.48,161.44,12.79234387]
[1762437766554,6.87274295,161.48,161.44,6.59818931]
[1762437766769,0.68,161.48,161.44,12.79235963]
[1762437767074,0.68,161.47,161.44,12.79235963]
[1762437767574,0.68,161.47,161.43,12.79274026]
[1762437767750,0.68,161.47,161.43,6.19455095]
[1762437767954,0.68,161.47,161.43,12.79274026]
[1762437768178,0.68,161.47,161.43,6.19455095]
[1762437768674,0.68,161.47,161.43,12.79274026]
[1762437768873,0.68,161.47,161.44,6.59818931]
[1762437769073,0.68,161.47,161.45,6.59818931]
[1762437769271,0.68,161.49,161.46,6.59818931]
[1762437769465,0.68,161.49,161.47,6.59818931]
[1762437769873,0.68,161.49,161.47,12.7912349]
[1762437770180,0.68,161.49,161.44,6.59818931]
[1762437770767,0.68,161.49,161.46,6.59818931]
[1762437770958,20.592,161.51,161.46,6.59818931]
[1762437770959,0.68,161.51,161.48,6.59818931]
[1762437771271,0.68,161.5,161.48,6.59818931]
[1762437771679,0.68,161.51,161.49,6.59818931]
[1762437771875,6.19041723,161.54,161.49,12.79047167]
[1762437772260,0.7,161.53,161.48,12.79078676]
[1762437772460,0.7,161.53,161.5,6.59818931]
[1762437773467,0.7,161.56,161.52,6.59818931]
[1762437773687,0.7,161.59,161.55,6.59818931]
[1762437773887,0.7,161.58,161.55,12.78804789]
[1762437774066,0.7,161.58,161.53,12.78866646]
[1762437774462,7.29818931,161.58,161.53,6.19047715]
[1762437774866,0.7,161.57,161.53,6.19047715]
[1762437775777,0.7,161.57,161.53,6.59818931]
[1762437776290,0.7,161.57,161.54,6.59818931]
[1762437776592,0.7,161.57,161.52,6.59818931]
[1762437776789,0.7,161.57,161.51,6.59818931]
[1762437776790,13.48752254,161.57,161.51,6.59818931]
[1762437777087,0.7,161.57,161.52,6.59818931]
[1762437777292,0.7,161.56,161.52,6.59818931]
[1762437777666,0.7,161.56,161.52,12.78907787]
[1762437778187,0.7,161.56,161.53,6.59818931]
[1762437779490,0.7,161.56,161.52,6.19107159]
[1762437779491,0.7,161.56,161.52,6.59818931]
[1762437779788,6.88968388,161.56,161.51,12.78966148]
[1762437779986,0.7,161.56,161.51,6.59818931]
[1762437780195,0.7,161.55,161.51,12.78964871]
[1762437780397,0.7,161.58,161.54,6.59818931]
[1762437780691,0.7,161.57,161.54,6.59818931]
[1762437780994,0.7,161.57,161.53,6.59818931]
[1762437781202,0.7,161.57,161.52,6.59818931]
[1762437781203,7.29818931,161.57,161.52,6.59818931]
[1762437781486,0.7,161.56,161.52,6.59818931]
[1762437781884,0.7,161.56,161.52,12.78931761]
[1762437782606,0.7,161.59,161.55,6.59818931]
[1762437782810,0.7,161.59,161.57,6.59818931]
[1762437783165,0.7,161.59,161.56,6.59818931]
[1762437783368,0.7,161.59,161.55,6.59818931]
[1762437783664,0.7,161.59,161.54,6.59818931]
[1762437783871,0.7,161.59,161.55,6.19003404]
[1762437784372,6.88853976,161.59,161.53,6.19080047]
[1762437784565,6.59818931,161.58,161.52,12.7892702]
[1762437784766,7.29818931,161.57,161.51,6.59818931]
[1762437784993,6.59818931,161.56,161.5,12.78978385]
[1762437785288,7.29818931,161.56,161.5,12.78978385]
[1762437785499,7.29818931,161.55,161.49,12.79042128]
[1762437785675,0.7,161.54,161.49,12.79042128]
[1762437786009,6.59818931,161.51,161.45,6.59818931]
[1762437786183,6.19091403,161.53,161.42,6.1950192]
[1762437786184,6.59818931,161.5,161.42,6.1950192]
[1762437786397,6.59818931,161.49,161.43,6.59818931]
[1762437786575,6.59818931,161.51,161.45,6.59818931]
[1762437786777,7.29818931,161.51,161.45,6.59818931]
[1762437786989,0.7,161.5,161.45,6.59818931]
[1762437787408,6.89205562,161.5,161.45,6.59818931]
[1762437787708,6.89205562,161.5,161.43,0.66]
[1762437787878,0.7,161.49,161.44,6.59818931]
[1762437788272,0.7,161.49,161.43,22.34094511]
[1762437788273,7.29818931,161.49,161.43,13.45254581]
[1762437788470,6.59818931,161.48,161.42,12.79309727]
[1762437788687,7.29818931,161.48,161.42,12.79309727]
[1762437788894,0.7,161.47,161.42,12.79309727]
[1762437789481,6.59818931,161.44,161.39,6.19603845]
[1762437789799,6.59818931,161.44,161.38,6.59818931]
[1762437790000,0.7,161.43,161.38,6.59818931]
[1762437790382,0.7,161.43,161.38,7.25818931]
[1762437790584,0.7,161.43,161.39,6.59818931]
[1762437790792,0.7,161.43,161.38,13.45440645]
[1762437791477,0.7,161.43,161.39,6.59818931]
[1762437792100,13.49284072,161.43,161.37,12.79508194]
[1762437792473,0.7,161.42,161.37,12.79508194]
[1762437792978,0.7,161.42,161.38,6.59818931]
[1762437793605,20.592,161.46,161.4,6.59818931]
[1762437793907,0.7,161.48,161.45,6.59818931]
[1762437794078,0.7,161.48,161.46,6.59818931]
[1762437794283,0.7,161.48,161.44,6.59818931]
[1762437795109,0.7,161.48,161.45,6.59818931]
[1762437796121,0.7,161.48,161.45,12.79203457]
[1762437796611,0.7,161.48,161.46,6.59818931]
[1762437798725,0.7,161.48,161.45,6.59818931]
[1762437799106,0.7,161.48,161.44,6.59818931]
[1762437799107,6.89279802,161.48,161.44,6.59818931]
[1762437799327,0.7,161.48,161.44,12.7923949]
[1762437799623,27.19018931,161.5,161.43,0.66]
[1762437799624,6.19238601,161.49,161.43,0.66]
[1762437799826,20.592,161.5,161.44,6.59818931]
[1762437800013,15.47626833,161.54,161.43,6.85452471]
[1762437800014,6.59818931,161.53,161.47,6.59818931]
[1762437800192,6.59818931,161.53,161.43,6.85452471]
[1762437800193,0.7,161.51,161.49,6.59818931]
[1762437800618,0.7,161.51,161.48,12.79072392]
[1762437801197,12.78844345,161.55,161.49,6.59818931]
[1762437801401,0.7,161.54,161.51,6.59818931]
[1762437801804,7.29818931,161.54,161.48,12.79072392]
[1762437802294,0.7,161.54,161.5,6.19195046]
[1762437802491,0.69,161.53,161.49,6.59818931]
[1762437802916,0.69,161.53,161.48,6.59818931]
[1762437803316,0.69,161.53,161.48,7.28818931]
[1762437803514,7.28818931,161.53,161.47,12.79129019]
[1762437803711,6.59818931,161.52,161.47,6.19310088]
[1762437803919,0.69,161.52,161.45,6.19375022]
[1762437804113,7.28818931,161.51,161.46,6.59818931]
[1762437804312,0.69,161.51,161.46,10.85457439]
[1762437804523,15.47604308,161.54,161.46,10.85457439]
[1762437804524,6.8805093,161.54,161.48,4.66125584]
[1762437804728,0.69,161.53,161.49,4.66125584]
[1762437805320,6.18933134,161.57,161.5,4.66125584]
[1762437805507,0.69,161.56,161.54,4.66125584]
[1762437806424,0.69,161.56,161.54,10.8515032]
[1762437806936,4.66125584,161.61,161.55,4.66125584]
[1762437807108,0.69,161.61,161.56,4.66125584]
[1762437807730,0.69,161.61,161.57,4.66125584]
[1762437808131,0.69,161.61,161.58,4.66125584]
[1762437808330,10.8479173,161.64,161.59,10.8497576]
[1762437808331,0.69,161.64,161.59,10.8497576]
[1762437808535,0.69,161.63,161.59,10.8497576]
[1762437808736,0.69,161.63,161.6,4.66125584]
[1762437808940,0.69,161.66,161.61,4.66125584]
[1762437809236,21.282,161.66,161.61,4.66125584]
[1762437809538,21.282,161.66,161.61,5.35125584]
[1762437809716,0.69,161.65,161.62,4.66125584]
[1762437809915,0.1,161.67,161.64,4.66125584]
[1762437810341,0.69,161.77,161.67,42.24103815]
[1762437810509,0.69,161.77,161.67,21.64903815]
[1762437810713,11.53291192,161.77,161.71,4.66125584]
[1762437810915,0.69,161.75,161.72,4.66125584]
[1762437811115,0.69,161.75,161.7,4.66125584]
[1762437811310,4.66125584,161.73,161.67,4.66125584]
[1762437811622,0.79,161.74,161.65,4.66125584]
[1762437811623,4.66125584,161.71,161.65,4.66125584]
[1762437812040,5.35125584,161.71,161.65,4.66125584]
[1762437812233,0.69,161.7,161.65,4.66125584]
[1762437812443,6.87447644,161.7,161.63,6.87673257]
[1762437812613,6.87447644,161.7,161.65,4.66125584]
[1762437813143,0.69,161.69,161.65,4.66125584]
[1762437813911,0.69,161.69,161.63,22.34415817]
[1762437813912,0.69,161.69,161.66,4.66125584]
[1762437814832,0.69,161.69,161.67,4.66125584]
[1762437815539,21.282,161.72,161.68,4.66125584]
[1762437815728,21.282,161.72,161.69,4.66125584]
[1762437816735,27.45564127,161.72,161.69,4.66125584]
[1762437817418,26.77564127,161.72,161.69,4.66125584]
[1762437817744,0.68,161.71,161.69,4.66125584]
[1762437817943,11.52518236,161.71,161.66,4.66125584]
[1762437818323,0.68,161.7,161.66,4.66125584]
[1762437818533,5.34125584,161.7,161.65,4.66125584]
[1762437818737,10.84518236,161.71,161.66,4.66125584]
[1762437819044,0.68,161.69,161.66,4.66125584]
[1762437819253,0.68,161.69,161.65,4.66125584]
[1762437819419,0.1,161.74,161.63,0.7]
[1762437819618,0.68,161.73,161.69,4.66125584]
[1762437820046,6.8632845,161.73,161.68,4.66125584]
[1762437820544,0.68,161.72,161.69,4.66125584]
[1762437820715,0.68,161.72,161.65,0.7]
[1762437820915,4.66125584,161.71,161.65,4.66125584]
[1762437821128,4.66125584,161.7,161.65,4.66125584]
[1762437821334,4.66125584,161.68,161.6,27.48006571]
[1762437821528,4.66125584,161.68,161.63,4.66125584]
[1762437821720,6.86545521,161.67,161.63,4.66125584]
[1762437822135,0.68,161.66,161.63,4.66125584]
[1762437823256,0.68,161.66,161.64,4.66125584]
[1762437826536,6.1850778,161.68,161.64,4.66125584]
[1762437826736,6.1850778,161.68,161.65,4.66125584]
[1762437826737,6.8650778,161.68,161.65,4.66125584]
[1762437827340,0.68,161.67,161.64,4.66125584]
[1762437828644,6.86549876,161.67,161.63,4.66125584]
[1762437828849,0.68,161.66,161.63,4.66125584]
[1762437829162,0.68,161.66,161.62,4.66125584]
[1762437830159,6.86599807,161.66,161.62,4.66125584]
[1762437831965,0.68,161.65,161.62,4.66125584]
[1762437832169,11.52756171,161.65,161.6,4.66125584]
[1762437832666,11.52756171,161.65,161.57,0.7]
[1762437832667,4.66125584,161.62,161.57,4.66125584]
[1762437833038,4.66125584,161.6,161.54,6.19032373]
[1762437833243,4.66125584,161.6,161.54,4.66125584]
[1762437833442,0.66,161.59,161.54,4.66125584]
[1762437834042,6.18888476,161.58,161.54,5.32125584]
[1762437834243,6.18888476,161.58,161.48,21.452]
[1762437834449,4.66125584,161.56,161.51,4.66125584]
[1762437834661,4.66125584,161.56,161.5,4.66125584]
[1762437834852,0.66,161.55,161.51,4.66125584]
[1762437835483,6.19041723,161.54,161.5,4.66125584]
[1762437835771,11.51135055,161.55,161.49,10.85337987]
[1762437835991,11.51135055,161.55,161.5,4.66125584]
[1762437835992,0.66,161.54,161.5,4.66125584]
[1762437836562,5.32125584,161.54,161.49,10.85337987]
[1762437836767,0.66,161.54,161.49,10.85337987]
[1762437836971,0.66,161.53,161.49,10.85337987]
[1762437837290,0.66,161.53,161.49,4.66125584]
[1762437837452,6.85096456,161.53,161.49,4.66125584]
[1762437837855,0.66,161.53,161.49,10.8535782]
[1762437838353,0.66,161.53,161.49,4.66125584]
[1762437839491,0.66,161.53,161.49,10.85358376]
[1762437839993,11.51224112,161.53,161.48,0.2]
[1762437840181,11.51224112,161.53,161.48,4.86125584]
[1762437840351,0.66,161.52,161.48,11.05395975]
[1762437840552,5.32125584,161.52,161.48,0.2]
[1762437841092,0.66,161.54,161.5,4.66125584]
[1762437841591,6.19080047,161.53,161.48,0.2]
[1762437841759,11.51176524,161.54,161.49,4.66125584]
[1762437842076,0.66,161.54,161.51,4.66125584]
[1762437842773,6.85049629,161.54,161.51,4.66125584]
[1762437842972,11.51175213,161.54,161.49,4.66125584]
[1762437843278,6.85049629,161.54,161.5,4.66125584]
[1762437843666,0.66,161.53,161.5,4.66125584]
[1762437843868,35.60328495,161.6,161.5,4.66125584]
[1762437843869,6.18664868,161.64,161.51,1.2791567]
[1762437844186,6.18664868,161.64,161.53,4.66125584]
[1762437844187,5.32125584,161.59,161.53,4.66125584]
[1762437844391,4.66125584,161.57,161.51,4.66125584]
[1762437844595,4.66125584,161.55,161.49,5.32125584]
[1762437844884,4.66125584,161.54,161.49,4.66125584]
[1762437845268,20.592,161.57,161.48,0.2]
[1762437845269,4.66125584,161.52,161.48,0.2]
[1762437845460,4.66125584,161.51,161.48,0.2]
[1762437845661,6.19195046,161.5,161.48,0.2]
[1762437845891,0.66,161.49,161.48,0.2]
[1762437847664,6.85233389,161.49,161.48,0.2]
[1762437848080,0.66,161.49,161.48,0.2]
[1762437848266,20.592,161.51,161.48,0.2]
[1762437848469,21.252,161.51,161.48,4.86125584]
[1762437848887,0.66,161.5,161.48,4.86125584]
[1762437849189,20.592,161.51,161.48,4.86125584]
[1762437849387,0.66,161.53,161.5,4.66125584]
[1762437849596,27.4428689,161.53,161.5,4.66125584]
[1762437849765,27.4428689,161.53,161.48,7.05268993]
[1762437849766,20.592,161.52,161.49,4.66125584]
[1762437850080,20.592,161.52,161.5,4.66125584]
[1762437850793,15.47237101,161.58,161.51,4.66125584]
[1762437851090,6.18887901,161.59,161.56,4.66125584]
[1762437851275,20.592,161.57,161.56,4.66125584]
[1762437851483,6.8478112,161.61,161.54,0.66]
[1762437851679,21.252,161.6,161.56,4.66125584]
[1762437851875,0.66,161.59,161.56,4.66125584]
[1762437852071,5.04975516,161.66,161.57,4.66125584]
[1762437852072,4.66125584,161.62,161.57,4.66125584]
[1762437852282,5.32125584,161.62,161.57,4.66125584]
[1762437852478,21.252,161.61,161.57,4.66125584]
[1762437852670,10.84864863,161.62,161.57,4.66125584]
[1762437852671,6.84739279,161.62,161.58,4.66125584]
[1762437852871,6.84739279,161.62,161.57,0.66]
[1762437852872,0.66,161.62,161.59,4.66125584]
[1762437853096,21.252,161.62,161.58,4.66125584]
[1762437853392,4.66125584,161.61,161.55,4.66125584]
[1762437853601,4.66125584,161.61,161.56,4.66125584]
[1762437853602,6.84797461,161.61,161.56,4.66125584]
[1762437853901,0.66,161.6,161.56,4.66125584]
[1762437854765,0.66,161.6,161.54,4.66125584]
[1762437854766,4.66125584,161.59,161.54,4.66125584]
[1762437855186,21.65731437,161.61,161.53,4.66125584]
[1762437855187,25.91325584,161.58,161.53,4.66125584]
[1762437855387,0.66,161.57,161.53,4.66125584]
[1762437855604,11.51082482,161.57,161.48,0.86]
[1762437855782,11.51082482,161.57,161.48,4.86125584]
[1762437855783,4.66125584,161.54,161.48,4.86125584]
[1762437855983,4.66125584,161.54,161.49,4.66125584]
[1762437856199,0.66,161.53,161.49,4.66125584]
[1762437857982,11.51218479,161.53,161.48,4.86125584]
[1762437858180,11.51218479,161.53,161.48,0.2]
[1762437858397,0.66,161.52,161.48,4.86125584]
[1762437859200,0.66,161.52,161.48,11.05388854]
[1762437859501,27.44248055,161.54,161.5,4.66125584]
[1762437859671,0.66,161.53,161.5,4.66125584]
[1762437860202,6.85100378,161.53,161.49,4.66125584]
[1762437860380,0.66,161.53,161.49,4.66125584]
[1762437860573,6.85094113,161.53,161.49,4.66125584]
[1762437861701,6.85124567,161.52,161.48,0.2]
[1762437861879,6.85124567,161.52,161.48,5.52125584]
[1762437862079,0.66,161.52,161.49,4.66125584]
[1762437862897,131.48277757,161.54,161.49,4.66125584]
[1762437863100,132.17277757,161.54,161.5,4.66125584]
[1762437863606,6.88101434,161.53,161.49,4.66125584]
[1762437863901,0.69,161.52,161.49,4.66125584]
[1762437864489,0.69,161.52,161.49,6.590807]
[1762437865088,138.76327609,161.54,161.49,7.310807]
[1762437865400,0.69,161.53,161.49,6.590807]
[1762437866603,104.7,161.52,161.49,6.590807]
[1762437867002,105.39,161.52,161.49,6.590807]
[1762437867200,105.39,161.52,161.48,6.39269517]
[1762437867404,105.39,161.52,161.49,6.590807]
[1762437868107,0.69,161.51,161.48,12.98342421]
[1762437868602,110.89122004,161.52,161.48,6.790807]
[1762437868803,110.89122004,161.52,161.48,0.2]
[1762437868804,0.69,161.51,161.48,0.2]
[1762437869302,7.280807,161.51,161.48,0.2]
[1762437869790,0.69,161.5,161.48,0.2]
[1762437870483,12.78314089,161.49,161.48,0.2]
[1762437870821,26.78433389,161.49,161.48,0.2]
[1762437870988,34.06514089,161.49,161.48,0.2]
[1762437872310,13.47314089,161.49,161.48,0.2]
[1762437872687,13.47314089,161.49,161.37,0.72]
[1762437872991,6.590807,161.39,161.35,0.2]
[1762437873511,0.69,161.38,161.35,0.2]
[1762437874612,6.19693871,161.37,161.35,0.2]
[1762437874816,20.592,161.4,161.36,6.590807]
[1762437875013,20.592,161.4,161.37,6.590807]
[1762437875194,26.7878261,161.4,161.37,6.590807]
[1762437875394,27.4778261,161.4,161.36,7.310807]
[1762437875604,27.4778261,161.4,161.36,6.590807]
[1762437876006,21.282,161.4,161.37,6.590807]
[1762437876310,27.4778807,161.4,161.37,6.590807]
[1762437877020,16.19740871,161.43,161.39,6.590807]
[1762437877197,0.71,161.43,161.4,6.590807]
[1762437877405,4.88852917,161.46,161.42,6.590807]
[1762437877610,11.08213873,161.46,161.44,6.590807]
[1762437877808,6.9031561,161.47,161.44,6.590807]
[1762437878008,16.19065301,161.5,161.46,6.590807]
[1762437878214,0.71,161.49,161.46,6.590807]
[1762437878425,0.71,161.49,161.44,6.590807]
[1762437878426,28.97397561,161.49,161.44,6.590807]
[1762437878700,49.56597561,161.49,161.44,6.590807]
[1762437879006,0.71,161.48,161.45,6.590807]
[1762437879991,0.71,161.51,161.47,6.590807]
[1762437880219,6.90162633,161.51,161.49,6.590807]
[1762437880512,30.94582619,161.58,161.46,0.65]
[1762437880513,6.90117146,161.53,161.5,6.590807]
[1762437880712,20.592,161.51,161.49,6.590807]
[1762437880895,7.300807,161.52,161.47,6.590807]
[1762437881097,6.590807,161.51,161.43,6.84463544]
[1762437881293,7.300807,161.51,161.46,6.590807]
[1762437881713,0.71,161.5,161.46,6.590807]
[1762437882020,6.19233389,161.49,161.45,6.590807]
[1762437882198,12.78314089,161.49,161.44,6.590807]
[1762437882398,13.49314089,161.49,161.44,6.590807]
[1762437882619,0.71,161.48,161.42,0.65]
[1762437882826,0.71,161.48,161.44,6.590807]
[1762437883904,6.90290408,161.48,161.44,6.590807]
[1762437884109,6.90290408,161.48,161.44,7.240807]
[1762437884403,6.19290408,161.48,161.44,6.590807]
[1762437884609,0.71,161.47,161.44,6.590807]
[1762437884804,0.71,161.48,161.45,6.590807]
[1762437885002,0.71,161.47,161.43,6.590807]
[1762437885232,6.590807,161.45,161.38,0.65]
[1762437885400,6.590807,161.45,161.4,6.590807]
[1762437885723,7.300807,161.45,161.4,6.590807]
[1762437886025,0.71,161.44,161.4,7.240807]
[1762437886197,6.90433632,161.44,161.4,6.590807]
[1762437886732,0.71,161.44,161.41,6.590807]
[1762437886898,6.90426148,161.44,161.41,6.590807]
[1762437887619,27.182807,161.45,161.4,7.240807]
[1762437887812,27.49597042,161.45,161.41,6.590807]
[1762437888528,21.302,161.45,161.41,6.590807]
[1762437888732,27.49593317,161.45,161.41,6.590807]
[1762437889098,0.71,161.44,161.41,6.590807]
[1762437890230,26.78608379,161.45,161.41,6.590807]
[1762437890527,104.7,161.46,161.44,6.590807]
[1762437890698,132.1947521,161.48,161.45,6.590807]
[1762437891398,111.6027521,161.48,161.44,7.240807]
[1762437891816,132.1947521,161.48,161.44,7.240807]
[1762437892008,0.71,161.47,161.44,6.590807]
[1762437892423,131.4847521,161.48,161.44,6.590807]
[1762437892599,132.1747521,161.48,161.44,6.590807]
[1762437893032,125.982,161.48,161.45,6.590807]
[1762437893216,132.17484549,161.48,161.45,6.590807]
[1762437893801,132.17484549,161.48,161.44,6.590807]
[1762437895029,7.280807,161.47,161.42,6.590807]
[1762437895225,0.69,161.47,161.43,6.590807]
[1762437895403,0.69,161.46,161.42,6.590807]
[1762437896029,6.19386807,161.45,161.42,6.590807]
[1762437896210,12.78467507,161.45,161.4,6.590807]
[1762437896421,0.69,161.44,161.4,6.590807]
[1762437896730,0.69,161.44,161.4,7.260807]
[1762437897429,6.590807,161.43,161.36,0.67]
[1762437897622,6.590807,161.43,161.38,6.590807]
[1762437897824,7.280807,161.43,161.38,6.590807]
[1762437898014,6.8850192,161.42,161.38,6.590807]
[1762437898515,48.86537421,161.42,161.37,7.260807]
[1762437898713,0.69,161.41,161.37,6.590807]
[1762437898911,6.590807,161.4,161.35,0.2]
[1762437899112,6.590807,161.4,161.35,6.790807]
[1762437899318,27.872807,161.39,161.35,0.2]
[1762437899717,0.69,161.38,161.35,0.2]
[1762437900123,0.69,161.38,161.35,6.790807]
[1762437900124,6.19693871,161.37,161.35,6.790807]
[1762437900632,6.19693871,161.37,161.35,0.2]
[1762437900633,27.872807,161.36,161.35,0.2]
[1762437901134,20.592,161.36,161.35,0.2]
[1762437901313,21.282,161.36,161.35,0.2]
[1762437902308,27.47932275,161.36,161.35,0.2]
[1762437902524,132.17932275,161.36,161.35,0.2]
[1762437902731,104.7,161.4,161.35,13.65851384]
[1762437902931,104.7,161.4,161.38,6.590807]
[1762437903131,125.292,161.4,161.38,6.590807]
[1762437903331,0.69,161.39,161.36,6.590807]